fUST/lending_fUST_20250930
["ID","MTS","AMOUNT","RATE_DAILY","PERIOD"]
[388466981,1759180254496,-151.0,0.00023,7]
[388466982,1759180254505,-151.0,0.00023,7]
[388466983,1759180254514,-151.0,0.00023,7]
[388466984,1759180254524,-151.0,0.00023,7]
[388466985,1759180254533,-151.0,0.00023,7]
[388466986,1759180254542,-151.0,0.00023,7]
[388466987,1759180254551,-151.0,0.00023,7]
[388466988,1759180254560,-151.0,0.00023,7]
[388466989,1759180254569,-151.0,0.00023,7]
[388466990,1759180254741,-151.0,0.00023,7]
[388466991,1759180254752,-151.0,0.00023,7]
[388466992,1759180254761,-4340.3587398,0.00023,2]
[388466993,1759180254771,-160.0,0.00023,2]
[388466994,1759180254781,-168.0,0.00023043,2]
[388466995,1759180254791,-286.75830561,0.00023068,2]
[388466996,1759180254800,-151.0,0.00023071,7]
[388466997,1759180254810,-151.0,0.00023071,7]
[388466998,1759180254819,-151.0,0.00023071,7]
[388466999,1759180254829,-151.0,0.00023071,7]
[388467000,1759180254838,-258.49218229,0.00023072,2]
[388467001,1759180254847,-198.0,0.00023072,2]
[388467002,1759180254857,-500.0,0.00023072,2]
[388467003,1759180254866,-500.0,0.00023072,2]
[388467004,1759180254875,-151.0,0.00023072,2]
[388467005,1759180254884,-200.54523026,0.00023072,2]
[388467006,1759180254894,-151.0,0.00023072,2]
[388467007,1759180254903,-500.0,0.00023072,2]
[388467008,1759180254912,-1564.0,0.00023072,2]
[388467009,1759180254922,-500.0,0.00023072,2]
[388467010,1759180254931,-175.63809994,0.00023072,2]
[388467011,1759180254940,-151.0,0.00023072,2]
[388467012,1759180254949,-500.0,0.00023072,2]
[388467013,1759180254958,-500.0,0.00023072,2]
[388467014,1759180254967,-500.0,0.00023072,2]
[388467015,1759180254976,-151.0,0.00023072,7]
[388467016,1759180254986,-151.0,0.00023072,7]
[388467017,1759180254995,-199.442798,0.00023072,7]
[388467018,1759180255004,-199.442798,0.00023072,7]
[388467019,1759180255014,-199.442798,0.00023072,7]
[388467020,1759180255022,-151.0,0.00023072,7]
[388467021,1759180255031,-199.442798,0.00023072,7]
[388467022,1759180255041,-157.243651,0.00023072,7]
[388467023,1759180255050,-151.0,0.00023072,7]
[388467024,1759180255059,-151.0,0.00023072,7]
[388467025,1759180255068,-152.036151,0.00023072,7]
[388467026,1759180255077,-159.610699,0.00023072,7]
[388467027,1759180255085,-375.346038,0.00023072,7]
[388467028,1759180255094,-375.346038,0.00023072,7]
[388467029,1759180255104,-151.0,0.00023072,7]
[388467030,1759180255113,-375.346038,0.00023072,7]
[388467031,1759180255122,-375.346038,0.00023072,7]
[388467032,1759180255131,-151.0,0.00023072,7]
[388467033,1759180255141,-151.0,0.00023072,7]
[388467034,1759180255150,-151.0,0.00023072,7]
[388467035,1759180255160,-151.0,0.00023072,7]
[388467036,1759180255170,-151.0,0.00023072,7]
[388467037,1759180255179,-151.0,0.00023072,7]
[388467038,1759180255188,-151.0,0.000231,8]
[388467039,1759180255197,-480.0,0.00023129,2]
[388467040,1759180255208,-2644.79,0.00023129,2]
[388467041,1759180255217,-479.36721072,0.00023129,2]
[388467042,1759180255226,-876.0,0.00023129,2]
[388467043,1759180255236,-722.27,0.00023129,2]
[388467044,1759180255245,-480.0,0.00023131,2]
[388467045,1759180255255,-1345.78,0.00023131,2]
[388467046,1759180255264,-480.0,0.00023131,2]
[388467047,1759180255274,-1010.66,0.00023131,2]
[388467048,1759180255283,-480.0,0.00023131,2]
[388467049,1759180255292,-480.0,0.00023131,2]
[388467050,1759180255301,-283.06729244,0.00023131,2]
[388467051,1759180255310,-480.0,0.00023131,2]
[388467052,1759180255319,-480.0,0.00023131,2]
[388467053,1759180255328,-660.3,0.00023131,2]
[388467054,1759180255338,-480.0,0.00023131,2]
[388467055,1759180255347,-1371.82,0.00023131,2]
[388467056,1759180255359,-480.0,0.00023131,2]
[388467057,1759180255368,-480.0,0.00023131,2]
[388467058,1759180255378,-7101.53,0.00023131,2]
[388467059,1759180255387,-2395.86,0.00023131,2]
[388467060,1759180255396,-1541.11,0.00023131,2]
[388467061,1759180255405,-588.15,0.00023131,2]
[388467062,1759180255414,-480.0,0.00023131,2]
[388467063,1759180255423,-2058.14,0.00023131,2]
[388467064,1759180255433,-1747.67,0.00023131,2]
[388467065,1759180255442,-480.0,0.00023131,2]
[388467066,1759180255451,-480.0,0.00023133,2]
[388467067,1759180255460,-480.0,0.00023133,2]
[388467068,1759180255469,-480.0,0.00023133,2]
[388467069,1759180255478,-188.13685701,0.00023133,2]
[388467070,1759180255488,-450.91312043,0.00023133,2]
[388467071,1759180255497,-480.0,0.00023133,2]
[388467072,1759180255506,-480.0,0.00023133,2]
[388467073,1759180255515,-480.0,0.00023133,2]
[388467074,1759180255524,-480.0,0.00023133,2]
[388467075,1759180255533,-591.6,0.00023133,2]
[388467076,1759180255542,-480.0,0.00023133,2]
[388467077,1759180255551,-480.0,0.00023133,2]
[388467078,1759180255559,-480.0,0.00023133,2]
[388467079,1759180255568,-480.0,0.00023133,2]
[388467080,1759180255577,-480.0,0.00023133,2]
[388467081,1759180255596,-480.0,0.00023133,2]
[388467082,1759180255607,-480.0,0.00023133,2]
[388467083,1759180255617,-899.34,0.00023133,2]
[388467084,1759180255627,-480.0,0.00023133,2]
[388467085,1759180255636,-480.0,0.00023133,2]
[388467086,1759180255646,-480.0,0.00023133,2]
[388467087,1759180255655,-480.0,0.00023133,2]
[388467088,1759180255665,-480.0,0.00023133,2]
[388467089,1759180255674,-480.0,0.00023133,2]
[388467090,1759180255684,-480.0,0.00023133,2]
[388467091,1759180255693,-480.0,0.00023133,2]
[388467092,1759180255703,-480.0,0.00023133,2]
[388467093,1759180255712,-480.0,0.00023133,2]
[388467094,1759180255722,-670.92,0.00023133,2]
[388467095,1759180255732,-480.0,0.00023133,2]
[388467096,1759180255741,-664.1,0.00023133,2]
[388467097,1759180255751,-979.68,0.00023133,2]
[388467098,1759180255760,-480.0,0.00023133,2]
[388467099,1759180255770,-679.03,0.00023133,2]
[388467100,1759180255779,-170.59059822,0.00023133,2]
[388467101,1759180255789,-480.0,0.00023133,2]
[388467102,1759180255798,-480.0,0.00023133,2]
[388467103,1759180255808,-480.0,0.00023133,2]
[388467104,1759180255817,-480.0,0.00023133,2]
[388467105,1759180255827,-480.0,0.00023133,2]
[388467106,1759180255836,-480.0,0.00023133,2]
[388467107,1759180255845,-480.0,0.00023133,2]
[388467108,1759180255856,-480.0,0.00023133,2]
[388467109,1759180255865,-480.0,0.00023133,2]
[388467110,1759180255875,-480.0,0.00023133,2]
[388467111,1759180255884,-480.0,0.00023133,2]
[388467112,1759180255894,-633.7,0.00023133,2]
[388467113,1759180255904,-632.39,0.00023133,2]
[388467114,1759180255914,-545.34,0.00023133,2]
[388467115,1759180255926,-430.90589802,0.00023133,2]
[388467116,1759180255937,-480.0,0.00023133,2]
[388467117,1759180255948,-480.0,0.00023133,2]
[388467118,1759180255958,-545.58,0.00023133,2]
[388467119,1759180255969,-480.0,0.00023133,2]
[388467120,1759180255984,-480.0,0.00023133,2]
[388467121,1759180255994,-268.23,0.00023133,2]
[388467122,1759180256004,-543.94,0.00023133,2]
[388467123,1759180256016,-735.98,0.00023133,2]
[388467124,1759180256026,-480.0,0.00023133,2]
[388467125,1759180256037,-480.0,0.00023133,2]
[388467126,1759180256047,-480.0,0.00023133,2]
[388467127,1759180256058,-509.99,0.00023133,2]
[388467128,1759180256077,-553.31,0.00023133,2]
[388467129,1759180256097,-739.25,0.00023133,2]
[388467130,1759180256109,-480.0,0.00023133,2]
[388467131,1759180256119,-480.0,0.00023133,2]
[388467132,1759180256128,-480.0,0.00023133,2]
[388467133,1759180256138,-1684.91,0.00023133,2]
[388467134,1759180256147,-480.0,0.00023133,2]
[388467135,1759180256156,-480.0,0.00023133,2]
[388467136,1759180256166,-1232.01,0.00023133,2]
[388467137,1759180256177,-784.13,0.00023133,2]
[388467138,1759180256187,-480.0,0.00023133,2]
[388467139,1759180256197,-498.83,0.00023133,2]
[388467140,1759180256207,-857.29,0.00023133,2]
[388467141,1759180256217,-480.0,0.00023133,2]
[388467142,1759180256227,-1010.1,0.00023133,2]
[388467143,1759180256238,-560.85,0.00023133,2]
[388467144,1759180256247,-881.56,0.00023133,2]
[388467145,1759180256257,-525.61,0.00023133,2]
[388467146,1759180256266,-1402.76,0.00023133,2]
[388467147,1759180256276,-480.0,0.00023133,2]
[388467148,1759180256285,-4210.83,0.00023133,2]
[388467149,1759180256295,-576.69,0.00023133,2]
[388467150,1759180256305,-595.24,0.00023133,2]
[388467151,1759180256315,-613.69584275,0.00023133,2]
[388467152,1759180256324,-480.0,0.00023133,2]
[388467153,1759180256333,-1696.01,0.00023133,2]
[388467154,1759180256342,-480.0,0.00023133,2]
[388467155,1759180256353,-1238.02,0.00023133,2]
[388467156,1759180256367,-480.0,0.00023133,2]
[388467157,1759180256376,-480.0,0.00023133,2]
[388467158,1759180256386,-480.0,0.00023133,2]
[388467159,1759180256395,-858.48,0.00023133,2]
[388467160,1759180256406,-831.11,0.00023133,2]
[388467161,1759180256415,-1547.16,0.00023133,2]
[388467162,1759180256424,-480.0,0.00023133,2]
[388467163,1759180256437,-673.71,0.00023133,2]
[388467164,1759180256446,-528.23,0.00023133,2]
[388467165,1759180256456,-480.0,0.00023133,2]
[388467166,1759180256465,-3346.74,0.00023133,2]
[388467167,1759180256474,-691.66,0.00023133,2]
[388467168,1759180256484,-462.57817396,0.00023133,2]
[388467170,1759180256493,-599.28,0.00023133,2]
[388467171,1759180256502,-480.0,0.00023133,2]
[388467172,1759180256512,-1530.45,0.00023133,2]
[388467173,1759180256521,-480.0,0.00023133,2]
[388467174,1759180256530,-1441.05,0.00023133,2]
[388467175,1759180256540,-669.71,0.00023133,2]
[388467176,1759180256550,-480.0,0.00023133,2]
[388467177,1759180256559,-487.67,0.00023133,2]
[388467178,1759180256569,-492.29,0.00023133,2]
[388467179,1759180256579,-480.0,0.00023133,2]
[388467180,1759180256588,-3360.68,0.00023133,2]
[388467181,1759180256598,-480.0,0.00023133,2]
[388467182,1759180256607,-540.45,0.00023133,2]
[388467183,1759180256616,-941.14,0.00023133,2]
[388467184,1759180256626,-480.0,0.00023133,2]
[388467185,1759180256636,-923.95,0.00023133,2]
[388467186,1759180256646,-480.0,0.00023133,2]
[388467187,1759180256657,-480.0,0.00023133,2]
[388467188,1759180256666,-480.0,0.00023133,2]
[388467189,1759180256675,-490.58,0.00023133,2]
[388467190,1759180256685,-480.0,0.00023133,2]
[388467191,1759180256694,-1499.12,0.00023133,2]
[388467192,1759180256708,-480.0,0.00023133,2]
[388467193,1759180256717,-480.0,0.00023133,2]
[388467194,1759180256727,-480.0,0.00023134,2]
[388467195,1759180256736,-480.0,0.00023134,2]
[388467196,1759180256746,-480.0,0.00023134,2]
[388467197,1759180256755,-500.0,0.00023135,2]
[388467198,1759180256764,-480.0,0.00023135,2]
[388467199,1759180256774,-480.0,0.00023135,2]
[388467200,1759180256784,-501.66,0.00023135,2]
[388467201,1759180256794,-480.0,0.00023135,2]
[388467202,1759180256803,-602.69,0.00023135,2]
[388467203,1759180256813,-766.71,0.00023135,2]
[388467204,1759180256822,-480.0,0.00023135,2]
[388467206,1759180256832,-1192.11,0.00023135,2]
[388467207,1759180256841,-480.0,0.00023135,2]
[388467208,1759180256852,-1627.09,0.00023135,2]
[388467209,1759180256861,-151.0,0.00023135,7]
[388467210,1759180256871,-151.0,0.00023135,7]
[388467211,1759180256881,-151.0,0.00023135,7]
[388467212,1759180256891,-151.0,0.00023135,7]
[388467213,1759180256901,-480.0,0.00023135,2]
[388467214,1759180256912,-151.0,0.00023135,7]
[388467215,1759180256921,-151.0,0.00023135,7]
[388467216,1759180256931,-498.01,0.00023135,2]
[388467217,1759180256940,-151.0,0.00023135,7]
[388467218,1759180256950,-1025.99,0.00023135,2]
[388467219,1759180256960,-1834.128022,0.00023135,7]
[388467220,1759180256969,-946.39,0.00023135,2]
[388467221,1759180256979,-1834.128022,0.00023135,7]
[388467222,1759180256988,-1834.128022,0.00023135,7]
[388467223,1759180256997,-1834.128022,0.00023135,7]
[388467224,1759180257007,-1604.77,0.00023135,2]
[388467225,1759180257017,-480.0,0.00023135,2]
[388467226,1759180257026,-480.0,0.00023135,2]
[388467227,1759180257036,-13044.72066522,0.00023152,2]
[388467228,1759180257045,-480.0,0.00023235,2]
[388467229,1759180257055,-151.0,0.00023235,7]
[388467230,1759180257065,-151.0,0.00023235,7]
[388467231,1759180257074,-151.0,0.00023235,7]
[388467232,1759180257084,-151.0,0.00023235,7]
[388467233,1759180257093,-151.0,0.00023235,7]
[388467234,1759180257102,-151.0,0.00023235,7]
[388467235,1759180257112,-151.0,0.00023235,7]
[388467236,1759180257121,-151.0,0.00023235,7]
[388467237,1759180257131,-154.014455,0.00023235,7]
[388467238,1759180257140,-480.0,0.00023235,2]
[388467239,1759180257150,-480.0,0.00023235,2]
[388467240,1759180257159,-530.3,0.00023235,2]
[388467241,1759180257169,-483.85,0.00023235,2]
[388467242,1759180257178,-480.0,0.00023235,2]
[388467243,1759180257187,-480.0,0.00023235,2]
[388467244,1759180257197,-480.0,0.00023235,2]
[388467245,1759180257206,-480.0,0.00023235,2]
[388467246,1759180257215,-509.19,0.00023235,2]
[388467248,1759180257225,-480.0,0.00023235,2]
[388467249,1759180257235,-959.25,0.00023235,2]
[388467250,1759180257244,-480.0,0.00023235,2]
[388467251,1759180257254,-480.0,0.00023235,2]
[388467252,1759180257263,-517.13,0.00023235,2]
[388467253,1759180257272,-1872.04,0.00023235,2]
[388467254,1759180257281,-480.0,0.00023235,2]
[388467255,1759180257290,-480.0,0.00023235,2]
[388467256,1759180257299,-561.01,0.00023235,2]
[388467257,1759180257309,-540.93,0.00023235,2]
[388467258,1759180257318,-1396.18,0.00023235,2]
[388467259,1759180257327,-480.0,0.00023235,2]
[388467260,1759180257336,-151.0,0.00023235,7]
[388467261,1759180257345,-151.0,0.00023235,7]
[388467262,1759180257356,-151.0,0.00023235,7]
[388467263,1759180257368,-480.0,0.00023235,2]
[388467264,1759180257378,-151.0,0.00023242,7]
[388467265,1759180257387,-151.0,0.00023242,7]
[388467266,1759180257397,-151.0,0.00023242,7]
[388467267,1759180257406,-151.0,0.00023242,7]
[388467268,1759180257416,-151.0,0.00023242,7]
[388467269,1759180257426,-151.0,0.00023242,7]
[388467270,1759180257435,-151.0,0.00023242,7]
[388467271,1759180257444,-151.0,0.00023242,7]
[388467272,1759180257454,-480.0,0.00023243,2]
[388467273,1759180257463,-167.8090521,0.00023243,2]
[388467274,1759180257472,-480.0,0.00023243,2]
[388467275,1759180257482,-480.0,0.00023243,2]
[388467276,1759180257491,-480.0,0.00023243,2]
[388467277,1759180257500,-480.0,0.00023243,2]
[388467278,1759180257511,-500.0,0.00023243,2]
[388467279,1759180257520,-480.0,0.00023243,2]
[388467280,1759180257532,-480.0,0.00023243,2]
[388467281,1759180257541,-995.88,0.00023243,2]
[388467282,1759180257550,-480.0,0.00023243,2]
[388467283,1759180257560,-480.0,0.00023243,2]
[388467284,1759180257570,-480.0,0.00023243,2]
[388467285,1759180257579,-417.81186009,0.00023243,2]
[388467286,1759180257588,-480.0,0.00023243,2]
[388467287,1759180257598,-480.0,0.00023243,2]
[388467288,1759180257607,-825.57,0.00023243,2]
[388467289,1759180257617,-480.0,0.00023243,2]
[388467290,1759180257626,-480.0,0.00023243,2]
[388467291,1759180257635,-480.0,0.00023243,2]
[388467292,1759180257644,-480.0,0.00023243,2]
[388467293,1759180257654,-480.0,0.00023243,2]
[388467294,1759180257663,-480.0,0.00023243,2]
[388467295,1759180257672,-689.95,0.00023243,2]
[388467296,1759180257682,-480.0,0.00023243,2]
[388467297,1759180257691,-480.0,0.00023243,2]
[388467298,1759180257701,-480.0,0.00023243,2]
[388467299,1759180257710,-480.0,0.00023243,2]
[388467300,1759180257720,-480.0,0.00023243,2]
[388467301,1759180257730,-480.0,0.00023243,2]
[388467302,1759180257740,-151.0,0.00023243,7]
[388467303,1759180257749,-480.0,0.00023243,2]
[388467304,1759180257759,-480.0,0.00023243,2]
[388467305,1759180257768,-480.0,0.00023243,2]
[388467306,1759180257777,-480.0,0.00023243,2]
[388467307,1759180257786,-480.0,0.00023243,2]
[388467308,1759180257797,-480.0,0.00023243,2]
[388467309,1759180257807,-130425.311615,0.00023252,2]
[388467310,1759180257817,-189.40172226,0.00023252,7]
[388467311,1759180257826,-151.0,0.00023252,7]
[388467312,1759180257835,-217.354586,0.00023252,7]
[388467313,1759180257844,-151.0,0.00023252,7]
[388467314,1759180257855,-151.0,0.00023252,7]
[388467315,1759180257864,-151.0,0.00023252,7]
[388467316,1759180257873,-151.0,0.00023252,7]
[388467317,1759180257883,-151.0,0.00023252,7]
[388467318,1759180257893,-161.185824,0.00023252,7]
[388467319,1759180257902,-151.0,0.00023252,7]
[388467320,1759180257912,-151.0,0.00023252,7]
[388467321,1759180257921,-151.0,0.00023252,7]
[388467322,1759180257930,-151.0,0.00023252,7]
[388467323,1759180257939,-151.0,0.00023252,7]
[388467324,1759180257949,-151.0,0.00023252,7]
[388467325,1759180257958,-151.0,0.00023252,7]
[388467326,1759180258140,-151.0,0.00023252,7]
[388467327,1759180258150,-151.0,0.00023252,7]
[388467328,1759180258161,-152.156511,0.00023252,7]
[388467329,1759180258170,-152.156511,0.00023252,7]
[388467330,1759180258180,-152.156511,0.00023252,7]
[388467331,1759180258189,-151.0,0.00023252,7]
[388467332,1759180258199,-152.156511,0.00023252,7]
[388467333,1759180258208,-151.0,0.00023252,7]
[388467334,1759180258217,-224.470643,0.00023252,7]
[388467335,1759180258226,-151.0,0.00023252,7]
[388467336,1759180258236,-151.0,0.00023252,7]
[388467337,1759180258245,-151.0,0.00023252,7]
[388467338,1759180258254,-167.015535,0.00023252,7]
[388467339,1759180258263,-199.442798,0.00023252,7]
[388467340,1759180258273,-199.442798,0.00023252,7]
[388467341,1759180258282,-199.442798,0.00023252,7]
[388467342,1759180258291,-151.0,0.00023252,7]
[388467343,1759180258300,-199.442798,0.00023252,7]
[388467344,1759180258309,-151.0,0.00023252,7]
[388467345,1759180258318,-375.346038,0.00023252,7]
[388467346,1759180258327,-375.346038,0.00023252,7]
[388467347,1759180258336,-151.0,0.00023252,7]
[388467348,1759180258345,-375.346038,0.00023252,7]
[388467349,1759180258354,-375.346038,0.00023252,7]
[388467350,1759180258366,-151.0,0.00023252,7]
[388467351,1759180258375,-151.0,0.00023252,7]
[388467352,1759180258384,-151.0,0.00023252,7]
[388467353,1759180258393,-151.0,0.00023252,7]
[388467354,1759180258402,-153.52264,0.00023252,7]
[388467355,1759180258412,-151.0,0.00023252,7]
[388467356,1759180258420,-255.83817,0.00023252,7]
[388467357,1759180258429,-255.83817,0.00023252,7]
[388467358,1759180258438,-151.0,0.00023252,7]
[388467359,1759180258447,-255.83817,0.00023252,7]
[388467360,1759180258456,-255.83817,0.00023252,7]
[388467361,1759180258466,-151.0,0.00023252,7]
[388467362,1759180258475,-227.605274,0.00023252,7]
[388467363,1759180258485,-151.0,0.00023252,7]
[388467364,1759180258494,-151.0,0.00023252,7]
[388467365,1759180258503,-220.299151,0.00023252,7]
[388467366,1759180258512,-151.0,0.00023252,7]
[388467367,1759180258521,-151.0,0.00023252,7]
[388467368,1759180258530,-151.0,0.00023252,7]
[388467369,1759180258539,-286.679828,0.00023252,7]
[388467370,1759180258548,-286.679828,0.00023252,7]
[388467371,1759180258557,-286.679828,0.00023252,7]
[388467372,1759180258567,-286.679828,0.00023252,7]
[388467373,1759180258576,-151.0,0.00023252,7]
[388467374,1759180258585,-199.780283,0.00023252,7]
[388467375,1759180258594,-199.780283,0.00023252,7]
[388467376,1759180258603,-151.0,0.00023252,7]
[388467377,1759180258612,-151.0,0.00023252,7]
[388467378,1759180258621,-151.0,0.00023252,7]
[388467379,1759180258630,-151.0,0.00023252,7]
[388467380,1759180258639,-151.0,0.00023252,7]
[388467381,1759180258648,-648.407709,0.00023252,7]
[388467382,1759180258657,-648.407709,0.00023252,7]
[388467383,1759180258666,-648.407709,0.00023252,7]
[388467384,1759180258675,-151.0,0.00023252,7]
[388467385,1759180258685,-648.407709,0.00023252,7]
[388467386,1759180258693,-151.0,0.00023252,7]
[388467387,1759180258703,-295.488946,0.00023252,7]
[388467388,1759180258713,-295.488946,0.00023252,7]
[388467389,1759180258722,-151.0,0.00023252,7]
[388467390,1759180258732,-295.488946,0.00023252,7]
[388467391,1759180258742,-295.488946,0.00023252,7]
[388467392,1759180258751,-1094.91083825,0.00023268,2]
[388467393,1759180258760,-1500.0,0.00023268,2]
[388467394,1759180258769,-1500.0,0.00023268,2]
[388467395,1759180258778,-1500.0,0.00023268,2]
[388467396,1759180258787,-1500.0,0.00023268,2]
[388467397,1759180258796,-500.0,0.00023273,2]
[388467398,1759180258805,-500.0,0.00023273,2]
[388467399,1759180258814,-500.0,0.00023273,2]
[388467400,1759180258823,-500.0,0.00023273,2]
[388467401,1759180258833,-500.0,0.00023273,2]
[388467402,1759180258842,-432.89378398,0.00023273,2]
[388467403,1759180258851,-500.0,0.00023273,2]
[388467404,1759180258860,-507.51756834,0.00023273,2]
[388467405,1759180258868,-158.47877937,0.00023273,2]
[388467406,1759180258878,-500.0,0.00023273,2]
[388467407,1759180258887,-373.59886101,0.00023273,2]
[388467408,1759180258896,-503.12023794,0.00023273,2]
[388467409,1759180258906,-500.0,0.00023273,2]
[388467410,1759180258915,-572.08826976,0.00023273,2]
[388467411,1759180258925,-500.0,0.00023273,2]
[388467412,1759180258934,-515.16845242,0.00023273,2]
[388467413,1759180258943,-500.0,0.00023273,2]
[388467414,1759180258952,-500.0,0.00023273,2]
[388467415,1759180258962,-500.0,0.00023273,2]
[388467416,1759180258971,-451.61334099,0.00023273,2]
[388467417,1759180258979,-500.0,0.00023273,2]
[388467418,1759180258989,-500.0,0.00023273,2]
[388467419,1759180258998,-500.0,0.00023273,2]
[388467420,1759180259008,-500.0,0.00023273,2]
[388467421,1759180259017,-500.0,0.00023273,2]
[388467422,1759180259026,-500.0,0.00023273,2]
[388467423,1759180259037,-500.0,0.00023273,2]
[388467424,1759180259046,-500.0,0.00023273,2]
[388467425,1759180259055,-500.0,0.00023273,2]
[388467426,1759180259064,-500.0,0.00023273,2]
[388467427,1759180259073,-500.0,0.00023273,2]
[388467428,1759180259082,-500.0,0.00023273,2]
[388467429,1759180259091,-500.0,0.00023273,2]
[388467430,1759180259100,-500.0,0.00023273,2]
[388467431,1759180259109,-500.0,0.00023273,2]
[388467432,1759180259118,-500.0,0.00023273,2]
[388467433,1759180259128,-151.0,0.00023273,7]
[388467434,1759180259136,-151.0,0.00023273,7]
[388467435,1759180259146,-151.0,0.00023273,7]
[388467436,1759180259155,-151.0,0.00023273,7]
[388467437,1759180259164,-295.362297,0.00023273,7]
[388467438,1759180259173,-151.0,0.00023273,7]
[388467439,1759180259183,-1834.128022,0.00023273,7]
[388467440,1759180259192,-1834.128022,0.00023273,7]
[388467441,1759180259201,-1834.128022,0.00023273,7]
[388467442,1759180259211,-1834.128022,0.00023273,7]
[388467443,1759180259220,-1000.0,0.00023287,5]
[388467444,1759180259230,-514.04266913,0.00023287,2]
[388467445,1759180259239,-151.0,0.00023288,7]
[388467446,1759180259248,-164.207753,0.00023288,7]
[388467447,1759180259257,-151.0,0.000233,10]
[388467448,1759180259266,-151.0,0.00023308,7]
[388467449,1759180259275,-151.0,0.00023308,7]
[388467450,1759180259284,-151.0,0.00023308,7]
[388467451,1759180259293,-151.0,0.00023308,7]
[388467452,1759180259302,-162.3399399,0.00023311,2]
[388467453,1759180259311,-151.0,0.00023345,7]
[388467454,1759180259320,-151.0,0.00023345,7]
[388467455,1759180259329,-151.0,0.00023345,7]
[388467456,1759180259338,-151.0,0.00023345,7]
[388467457,1759180259347,-500.0,0.00023346,2]
[388467458,1759180259358,-500.0,0.00023346,2]
[388467459,1759180259369,-241.92520865,0.00023346,2]
[388467460,1759180259378,-151.0,0.00023346,2]
[388467461,1759180259387,-500.0,0.00023346,2]
[388467462,1759180259398,-1564.0,0.00023346,2]
[388467463,1759180259407,-500.0,0.00023346,2]
[388467464,1759180259416,-154.48522388,0.00023346,2]
[388467465,1759180259425,-500.0,0.00023346,2]
[388467466,1759180259434,-500.0,0.00023346,2]
[388467467,1759180259442,-306.0525701,0.00023346,2]
[388467468,1759180259451,-151.0,0.00023346,7]
[388467469,1759180259460,-160.0,0.00023357,2]
[388467470,1759180259469,-151.0,0.00023394,2]
[388467471,1759180259478,-277.355257,0.00023397,10]
[388467472,1759180259487,-1958.84,0.00023399,3]
[388467473,1759180259497,-979.42,0.00023399,3]
[388467474,1759180259506,-489.7,0.00023399,3]
[388467475,1759180259517,-7835.34,0.000234,3]
[388467476,1759180259526,-3917.68,0.000234,3]
[388467477,1759180259536,-233.87608454,0.000234,3]
[388467478,1759180259545,-189.40172226,0.000234,3]
[388467479,1759180259554,-480.0,0.00023403,2]
[388467480,1759180259563,-2644.79,0.00023403,2]
[388467481,1759180259572,-876.0,0.00023403,2]
[388467482,1759180259587,-722.27,0.00023403,2]
[388467483,1759180259604,-480.0,0.00023405,2]